Cogmind - Beta 14 --- EXPLORER MODE // 2024.11.10 @ 23:42:25 Player: Fiore Result: Destroyed by as-83813 with Assembled Blade Performance ------------- Evolutions (0) 0 Regions Visited (2) 400 Robots Destroyed (4) 20 Value Destroyed (107) 107 Prototype IDs (0) 0 Alien Tech Used (0) 0 Bonus (0) 0 TOTAL SCORE: 527 Bonus ------- None Cogmind --------- Core Integrity 0/250 Matter 285/300 Energy 78/125 System Corruption 0% Temperature Cool (0) Movement Core (100) Ox1 Location -10/Mines Parts ------- > --- POWER (1) -------- Light Ion Engine > --- PROPULSION (2) --- (None) > --- UTILITY (3) ------ Terrain Scanner Targeting Computer > --- WEAPON (2) ------- Datajack > --- INVENTORY (5) ---- ECM Suite Peak State ------------ > --- POWER ------------ Ion Engine > --- PROPULSION ------- Aluminum Leg Aluminum Leg > --- UTILITY ---------- Terrain Scanner Targeting Computer Core Shielding > --- WEAPON ----------- Light Assault Rifle Light Assault Rifle > --- INVENTORY -------- (None) [Rating: 8] Favorites ----------- Power Ion Engine Engine Ion Engine Propulsion Aluminum Leg Leg Aluminum Leg Utility Core Shielding Device Terrain Scanner Processor Targeting Computer Protection Core Shielding Weapon Light Assault Rifle Ballistic Gun Light Assault Rifle Special Melee Weapon Datajack Build | -11 -10 -10 ------- Run | Yrd Mat Min Slots Evolved 1 | . 1 . Power . | . . . Propulsion . | . . . Utility 1 | . 1 . Weapon . | . . . Parts Attached 10 | 7 1 2 Power 2 | 1 . 1 Engine 2 | 1 . 1 Core . | . . . Reactor . | . . . Propulsion 2 | 2 . . Treads . | . . . Leg 2 | 2 . . Wheel . | . . . Hover . | . . . Flight . | . . . Utility 3 | 2 1 . Device 1 | 1 . . Storage . | . . . Processor 1 | . 1 . Hackware . | . . . Protection 1 | 1 . . Artifact . | . . . Weapon 3 | 2 . 1 Energy Gun . | . . . Energy Cannon . | . . . Ballistic Gun 2 | 2 . . Ballistic Cannon . | . . . Launcher . | . . . Special Weapon . | . . . Impact Weapon . | . . . Slashing Weapon . | . . . Piercing Weapon . | . . . Special Melee Weapon 1 | . . 1 Unidentified Prototypes . | . . . Parts Lost 6 | . . 6 Power 1 | . . 1 Propulsion 2 | . . 2 Utility 1 | . . 1 Weapon 2 | . . 2 Highest Loss Streak 3 | . . 3 To Critical Strikes . | . . . Average Slot Usage (%) 94 | . 100 86 Engine 10 | . 12 7 Leg 21 | . 25 16 Device 12 | . 12 12 Processor 12 | . 12 12 Protection 12 | . 12 12 Ballistic Gun 25 | . 25 25 Peak Build Rating 8 | 7 8 8 Average Rating 7 | 4 8 6 On Entrance 5 | . 7 8 Naked Turns . | . . . Heaviest Build 9 | 9 9 9 Greatest Support 20 | 20 20 20 Greatest Overweight (x) 1 | . . 1 Average Overweight (x) . | . . . Largest Inventory Capacity 5 | 5 5 5 Average Capacity 5 | 5 5 5 Most Carried 5 | 5 2 3 Average Carried 1 | 1 . 2 Final Capacity 5 | 5 5 5 Final Carried 2 | 1 2 1 Class Distribution -------------------- 100% | Hacker-Mutant Dominant Class ---------------- Hacker-Mutant | -10/Materials Hacker-Mutant | -10/Mines Resources | -11 -10 -10 ----------- Run | Yrd Mat Min Matter Collected 301 | 186 102 13 Remotely . | . . . Salvage Created 115 | . 34 81 Parts 8 | . 2 6 Haulers Intercepted . | . . . Recyclers Shooed . | . . . Parts Field Recycled . | . . . Retrieved Matter . | . . . Parts Self-Destructed . | . . . Prevented . | . . . Kills | -11 -10 -10 ------- Run | Yrd Mat Min Combat Hostiles Destroyed 4 | . 1 3 Guns 4 | . 1 3 Classes Destroyed 3 | . 1 2 Swarmer 2 | . . 2 Grunt 1 | . 1 . Demolisher 1 | . . 1 Best Kill Streak 2 | . 1 2 Combat Bots Only 2 | . 1 2 Max Kills in Single Turn 1 | . 1 1 Gunslinging . | . . . Exploded . | . . . Melee . | . . . Uniques/NPCs Destroyed . | . . . Combat | -11 -10 -10 -------- Run | Yrd Mat Min Hostile Shots Fired 39 | . 2 37 Missed 4 | . . 4 Damage Taken 703 | . 13 690 Core 253 | . 6 247 Absorbed by Shields . | . . . Redirected to Shielding 50 | . 1 49 Ignored by Resistances 414 | . 8 406 Core Remaining (%) 100 | 100 . . Volleys Fired 21 | 1 4 16 Largest 2 | 2 2 2 Hottest 40 | 40 40 40 Shots Fired 42 | 2 8 32 Gun 42 | 2 8 32 Cannon . | . . . Launcher . | . . . Special . | . . . Kinetic 42 | 2 8 32 Thermal . | . . . Explosive . | . . . Electromagnetic . | . . . Robot Hit Streak 19 | . 7 19 Robot Miss Streak 2 | . . 2 Penetration Max . | . . . Secondary Targets . | . . . Shots Hit Robots 33 | . 7 26 Core Hits 16 | . 2 14 Critical Kills . | . . . Critical Parts Destroyed . | . . . Critical Strikes . | . . . Melee Attacks . | . . . Impact . | . . . Slashing . | . . . Piercing . | . . . Sneak Attacks . | . . . Combat Hostiles . | . . . Follow-up Attacks . | . . . Damage Inflicted 276 | . 55 221 Guns 276 | . 55 221 Cannons . | . . . Explosions . | . . . Melee . | . . . Ramming . | . . . Kinetic 276 | . 55 221 Thermal . | . . . Explosive . | . . . Electromagnetic . | . . . Impact . | . . . Slashing . | . . . Piercing . | . . . Highest Corruption . | . . . Average Corruption . | . . . Corruption Purged . | . . . Corruption Blocked . | . . . Overload Shots . | . . . Overflow Damage . | . . . Projectiles . | . . . Explosions . | . . . Melee . | . . . Knockbacks . | . . . Impact . | . . . Kinetic . | . . . Secondary . | . . . Self-Inflicted Damage . | . . . Shots . | . . . Rammed . | . . . Targets Rammed . | . . . Kicked . | . . . Crushed . | . . . Highest Temperature 12 | . 12 . Average Temperature 9 | . 9 . Received Heat Transfer 12 | . 12 . Siege Activations . | . . . Robots Corrupted . | . . . Combat Hostiles . | . . . Parts Fried . | . . . Impact Corruptions . | . . . Robots Melted . | . . . Combat Hostiles . | . . . Parts Melted . | . . . Heat Transferred . | . . . Parts Sabotaged . | . . . Parts Stolen . | . . . Parts Stripped . | . . . Power Chain Reactions . | . . . Alert | -11 -10 -10 ------- Run | Yrd Mat Min Peak Influence 82 | . 82 72 Initial 22 | . . 22 Average 31 | . 32 43 Maximum Alert Level . | . . . Low Security (%) 100 | 100 100 100 Level 1 . | . . . Level 2 . | . . . Level 3 . | . . . Level 4 . | . . . Level 5 . | . . . High Security . | . . . Max Security . | . . . Squads Dispatched 2 | . 2 . Investigation 2 | . 2 . Extermination . | . . . Reinforcement . | . . . Assault . | . . . Garrison . | . . . Intercept . | . . . Searches Triggered . | . . . Construction Impeded . | . . . Haulers Reinforced . | . . . Active Scanning Responses . | . . . Cargo Convoy Interrupts . | . . . Stealth | -11 -10 -10 --------- Run | Yrd Mat Min Distress Signals . | . . . Communications Jammed . | . . . Distress Signals . | . . . Times Spotted 11 | . 3 8 Peak Tracking Total 4 | . 2 4 Tactical Retreats . | . . . Traps | -11 -10 -10 ------- Run | Yrd Mat Min Traps Triggered . | . . . Indirectly . | . . . Trap Hack Attempts . | . . . Triggered . | . . . Disarmed . | . . . Reprogrammed . | . . . Reused . | . . . Traps Extracted . | . . . Installed . | . . . Triggered . | . . . Machines | -11 -10 -10 ---------- Run | Yrd Mat Min Machines Disabled . | . . . Max in Single Turn . | . . . Machines Repaired . | . . . Machines Dismantled . | . . . Machines Sabotaged . | . . . Overloaded Fab Kills . | . . . Hacking | -11 -10 -10 --------- Run | Yrd Mat Min Machines Accessed 2 | . 2 . Terminals 2 | . 2 . Fabricators . | . . . Repair Stations . | . . . Recycling Units . | . . . Scanalyzers . | . . . Garrison Access . | . . . Total Hacks 7 | . 7 . Successful 6 | . 6 . Failed 1 | . 1 . Catastrophic . | . . . Database Lockouts . | . . . Manual . | . . . Terminals 7 | . 7 . Fabricators . | . . . Repair Stations . | . . . Recycling Units . | . . . Scanalyzers . | . . . Garrison Access . | . . . Terminal Hacks 6 | . 6 . Record 6 | . 6 . Fabricator Hacks . | . . . Repair Station Hacks . | . . . Recycling Unit Hacks . | . . . Scanalyzer . | . . . Garrison Access Hacks . | . . . Unauthorized Hacks . | . . . Terminals . | . . . Fabricators . | . . . Repair Stations . | . . . Recycling Units . | . . . Scanalyzers . | . . . Garrison Access . | . . . Data Cores Recovered . | . . . Used . | . . . Hacking Detections 2 | . 2 . Full Trace Events 2 | . 2 . Feedback Events . | . . . Feedback Blocked . | . . . Robot Schematics Acquired . | . . . Robots Built . | . . . Authchips . | . . . Time . | . . . Total Robot Build Rating . | . . . Part Schematics Acquired . | . . . Parts Built . | . . . Authchips . | . . . Time . | . . . Total Part Build Rating . | . . . Parts Repaired . | . . . Time . | . . . Parts Recycled . | . . . Recycled Matter . | . . . Retrieved Matter . | . . . Retrieved Components . | . . . Parts Scanalyzed . | . . . Part Schematics Acquired . | . . . Parts Damaged . | . . . Bothacking | -11 -10 -10 ------------ Run | Yrd Mat Min Used RIF Installer . | . . . Robots Hacked . | . . . Non-combat . | . . . Combat . | . . . Robot Hacks Applied . | . . . Relay Couplers Released . | . . . Fabnet Peak Effective % . | . . . Robots Rewired . | . . . Allies Hacked . | . . . Hacks Repelled . | . . . Allies | -11 -10 -10 -------- Run | Yrd Mat Min Total Allies . | . . . Largest Group . | . . . Highest-Rated Group . | . . . Highest-Rated Ally . | . . . Total Orders . | . . . Ally Attacks . | . . . Total Damage . | . . . Kills . | . . . Allies Corrupted . | . . . Allies Melted . | . . . Intel | -11 -10 -10 ------- Run | Yrd Mat Min Robot Analysis Total . | . . . Derelict Logs Recovered . | . . . Drone Launches . | . . . Drone Recoveries . | . . . Exploration | -11 -10 -10 ------------- Run | Yrd Mat Min Turns Passed 405 | 57 221 127 Spaces Moved 289 | 43 174 72 Core 32 | 16 . 16 Treads . | . . . Legs 257 | 27 174 56 Wheels . | . . . Hover . | . . . Flight . | . . . Fastest Speed 50 | 50 120 50 Average Speed 114 | 93 120 114 Slowest Speed 120 | 120 120 120 Overloaded Moves . | . . . Propulsion Burnouts . | . . . Robots Hopped . | . . . Cave-ins Triggered . | . . . Exploration Rate (%) 16 | 3 27 19 Regions Visited 2 Branch Regions 1 Pre-discovered Areas . | . . . Known Exits Taken 2 | 1 1 . Unknown Exits Taken . | . . . Scrap Searched . | . . . Spaces Dug . | . . . Terrain Destroyed . | . . . Melee . | . . . Projectile . | . . . AOE . | . . . Terrain Rammed . | . . . Walls Destroyed . | . . . Machines Disabled . | . . . Actions | -11 -10 -10 --------- Run | Yrd Mat Min Total 329 | 58 180 91 Wait . | . . . Move 287 | 42 173 72 Hop . | . . . Pick Up 11 | 8 2 1 Fast Attach . | . . . Attach 10 | 7 1 2 Detach . | . . . Swap . | . . . Drop . | . . . Fire 21 | 1 4 16 Melee . | . . . Ram . | . . . Kick . | . . . Crush . | . . . Escape Stasis . | . . . Rewire . | . . . Trap . | . . . Miscellaneous . | . . . Route ------- -11/Scrapyard -10/Materials -10/Mines (discovered 1 exit: *Mat) History --------- Turn | Location | Event 2 | -11/Scrapyard | Met Revision 17 11 | -11/Scrapyard | Identified exit to Materials 11 | -11/Scrapyard | Discovered exit to Materials (range 16) 58 | -11/Scrapyard | Entered Materials 58 | -10/Materials | Evolved 1 slot: Utility x1 267 | -10/Materials | Identified exit to Mines 267 | -10/Materials | Discovered exit to Mines (range 8) 279 | -10/Materials | Entered Mines 307 | -10/Mines | Build established: Hacker-Mutant 325 | -10/Mines | Assembled infested the area 329 | -10/Mines | Identified exit to Materials 329 | -10/Mines | Discovered exit to Materials (range 12) 363 | -10/Mines | Core integrity fell below 50% 375 | -10/Mines | Core integrity fell below 20% 395 | -10/Mines | Lost 3 parts (1p2n) 406 | -10/Mines | Destroyed by as-83813 with Assembled Blade Last Messages --------------- U-05 Engineer lays Concrete. U-05 Engineer builds a Wall. K-01 Serf collects debris. U-05 Engineer lays Concrete. as-57824 sneak attacks. U-05 Engineer lays Concrete. U-05 Engineer builds a Wall. K-01 Serf collects debris. R-06 Scavenger destroyed. K-01 Serf destroyed. U-05 Engineer builds a Wall. Lgt. Assault Rifle destroyed. U-05 Engineer builds a Wall. Lgt. Assault Rifle destroyed. Acquired Lgt. Ion Engine. Bump into an enemy to attack with the active melee weapon. Even while active, melee weapons do not fire together with ranged weapons in the same volley. Core Shielding destroyed. Map ----- +----------------------------------------------------+ | ?????????????????????????????????????????????????? | | ?????????????????????????????????????????????????? | | ?????????????????????????????????????????????????? | | ?????????????????????????????????????????????????? | | ?????????????????????????????????????????????????? | | ?????????????????????????????????????????????????? | | ?????????????????????????????????????????????????? | | ?????????????????????????????????????????????????? | | ?????????????????????????????????????????????????? | | ?????????????????????????????????????????????????? | | ?????????????????????????????????????????????????? | | ?????????????????????#???? ??????????????????????? | | ?????????????????????????? ??????????????????????? | | ?????????????????????????? #???? #??????????????? | | ????????????????????????#? #???? ##?????????????? | | ???? ????????????????????? #??? ##????????????? | | ????????? ???????????????? #??# #????????????? | | ???? ????????#???????????? ### = #????????????? | | ????????????????????????## % #????????????? | | ???#??????????########### #?????????????? | | ??????????????# ## < #???????????????? | | ?#???????????## ###### % #????????????????? | | ???????????### #????????????????? | | ??????????## # a #????????????????? | | ????#??#### #=####### a=% #?????????????????? | | ?????#### # % ###%@%=* ##?????????????????? | | ??#?## ####aa* #??????????????????? | | ###### ####?## ##??????????????????? | | ##????#?# ##???????????????????? | | #### #???????? #????????????????????? | | #??## #????#????#????????????????????? | | #??# "" #????#?????????????????????????? | | ##??## "" ##??????????? ?????????????????? | | ?#???# " #?#????????????????????????????? | | ?????# #???#??#???????????????????????? | | ?#???##############?????#????????????????????????? | | ?????????????#???##??????????????????????????????? | | ???????#?????????????????????????????????????????? | | ???????????#?#???????????????????????????????????? | | ?????????????#?#?????????????????????????????????? | | ??#??????????????????????????????????????????????? | | ??????????????#??????????????????????????????????? | | ?????#???????????????????????????????????????????? | | ?????????????????????????????????????????????????? | | ?????????????????????????????????????????????????? | | ?????????????????????????????????????????????????? | | ?????????????????????????????????????????????????? | | ???#?????????????????????????????????????????????? | | #?????#??????????????????????????????????????????? | | ##???????????????????????????????????????????????? | +----------------------------------------------------+ Best States ------------- Heat Dissipation 25 Energy Generation 10 Energy Capacity 250 Matter Stores 300 Matter Capacity 300 Sight Range 16 Terrain Scan Range 14 Terrain Scan Density 10 Resistance: KI 35 Resistance: TH 35 Resistance: EX 35 Resistance: EM 35 Resistance: I 35 Resistance: S 35 Resistance: P 35 Core Shielding 20 Evasion (%) 55 Targeting Accuracy 5 Offensive Hacking 20 Item Schematics ----------------- None Robot Schematics ------------------ None Fabricated ------------ Nothing Alien Tech Used ----------------- None Achievements -------------- None Challenges ------------ None Game ------ Seed XenonThrowingSabre Manual? 0 Play Time 00:08:37 Cumulative 0.8 hours Start 2024.11.10 @ 23:32:57 End 2024.11.10 @ 23:42:25 Sessions 1 Manual Loads 0 Difficulty Explorer Special Mode None Game No. 5 Rogue 3 Adventurer 0 Explorer 2 Win Type - Total 0 Types 0/0/0/0/0/0/0/0/0 Lore% 1 Gallery% 3 Achievement% 4 Wizard Run 0 Options --------- Layout 1 ASCII 1 Keyboard 0 Movement Mouse Keybinds 0 Fullscreen 1 Font 24/Smallcaps Map View 50x35 Zoom Use 0% Tactical HUD 0 Map Filters NONE Filters NONE Steam 1 RUN: 8a06085a-654b-4736-b0fb-5479dec013c6